[Event "11th LCC Super Blitz 2019"]
[Site "London"]
[Date "2019.12.08"]
[Round "3.10"]
[White "Yeo, Klaus Lucas"]
[Black "Ignatovic, Ernest"]
[Result "1/2-1/2"]
[ECO "C02"]
[WhiteElo "1176"]
[BlackElo "1703"]
[Annotator "NA"]
[PlyCount "95"]
[EventDate "2019.12.08"]
[EventType "swiss"]
[EventCountry "ENG"]
[SourceTitle "playchess.com"]
[Source "ChessBase"]
[SourceQuality "1"]
[TimeControl "180+2"]

1. e4 {[%emt 0:00:00]} e6 {[%emt 0:00:00]} 2. d4 {[%emt 0:00:00]} d5 {[%emt 0:00:00]} 3. e5 {[%emt 0:00:00]} c5 {[%emt 0:00:00]} 4. c3 {[%emt 0:00:01]} Nc6 {[%emt 0:00:00]} 5. Nf3 {[%emt 0:00:00]} Bd7 {[%emt 0:00:03]} 6. Be3 {[%emt 0:00:02]} Qb6 {[%emt 0:00:07]} 7. Qc1 {[%emt 0:00:03]} cxd4 {[%emt 0:00:16]} 8. Nxd4 {[%emt 0:00:01]} Nxd4 {[%emt 0:00:03]} 9. Bxd4 {[%emt 0:00:01]} Bc5 {[%emt 0:00:11]} 10. Bxc5 {[%emt 0:00:32]} Qxc5 {[%emt 0:00:02]} 11. Qe3 {[%emt 0:00:06]} Qxe3+ {[%emt 0:00:31]} 12. fxe3 {[%emt 0:00:01]} Ne7 {[%emt 0:00:01]} 13. Bd3 {[%emt 0:00:01]} Nc6 {[%emt 0:00:05]} 14. O-O {[%emt 0:00:20]} Nxe5 {[%emt 0:00:01]} 15. Be2 {[%emt 0:00:01]} Ke7 {[%emt 0:00:10]} 16. Nd2 {[%emt 0:00:01]} a6 {[%emt 0:00:06]} 17. e4 {[%emt 0:00:01]} dxe4 {[%emt 0:00:05]} 18. Nxe4 {[%emt 0:00:01]} Bc6 {[%emt 0:00:08]} 19. Nc5 {[%emt 0:00:30]} Rad8 {[%emt 0:00:12]} 20. Rad1 {[%emt 0:00:04]} Rxd1 {[%emt 0:00:20]} 21. Rxd1 {[%emt 0:00:01]} Rd8 {[%emt 0:00:01]} 22. Nd3 {[%emt 0:00:19]} Nxd3 {[%emt 0:00:16]} 23. Bxd3 {[%emt 0:00:06]} Be4 {[%emt 0:00:09]} 24. Be2 {[%emt 0:00:03]} Rxd1+ {[%emt 0:00:05]} 25. Bxd1 {[%emt 0:00:01]} Bd5 {[%emt 0:00:08]} 26. b3 {[%emt 0:00:02]} e5 {[%emt 0:00:05]} 27. c4 {[%emt 0:00:02]} Be4 {[%emt 0:00:02]} 28. Bf3 {[%emt 0:00:01]} Bc6 {[%emt 0:00:25]} 29. Bxc6 {[%emt 0:00:01]} bxc6 {[%emt 0:00:00]} 30. Kf2 {[%emt 0:00:02]} f5 {[%emt 0:00:02]} 31. g3 {[%emt 0:00:01]} g5 {[%emt 0:00:01]} 32. Kf3 {[%emt 0:00:03]} e4+ {[%emt 0:00:02]} 33. Ke3 {[%emt 0:00:02]} Ke6 {[%emt 0:00:01]} 34. g4 {[%emt 0:00:02]} Ke5 {[%emt 0:00:12]} 35. gxf5 {[%emt 0:00:08]} Kxf5 {[%emt 0:00:01]} 36. h3 {[%emt 0:00:03]} h5 {[%emt 0:00:01]} 37. a4 {[%emt 0:00:03]} g4 {[%emt 0:00:02]} 38. hxg4+ {[%emt 0:00:03]} hxg4 {[%emt 0:00:01]} 39. b4 {[%emt 0:00:03]} g3 {[%emt 0:00:02]} 40. b5 {[%emt 0:00:06]} cxb5 {[%emt 0:00:04]} 41. cxb5 {[%emt 0:00:04]} g2 {[%emt 0:00:08]} 42. Kf2 {[%emt 0:00:01]} axb5 {[%emt 0:00:10]} 43. axb5 {[%emt 0:00:01]} Ke5 {[%emt 0:00:04]} 44. Kxg2 {[%emt 0:00:01]} Kd6 {[%emt 0:00:01]} 45. Kf2 {[%emt 0:00:02]} Kc5 {[%emt 0:00:02]} 46. b6 {[%emt 0:00:03]} Kxb6 {[%emt 0:00:01]} 47. Ke3 {[%emt 0:00:01]} Kc5 {[%emt 0:00:01]} 48. Kxe4 {[%emt 0:00:01]} 1/2-1/2

[Event "11th LCC Super Blitz 2019"]
[Site "London"]
[Date "2019.12.08"]
[Round "3.12"]
[White "Patel, Rishi"]
[Black "Manmay Chopra"]
[Result "0-1"]
[ECO "C03"]
[WhiteElo "1899"]
[BlackElo "1354"]
[Annotator "NA"]
[PlyCount "104"]
[EventDate "2019.12.08"]
[EventType "swiss"]
[EventCountry "ENG"]
[SourceTitle "playchess.com"]
[Source "ChessBase"]
[SourceQuality "1"]
[TimeControl "180+2"]

1. e4 {[%emt 0:00:00]} e6 {[%emt 0:00:00]} 2. d4 {[%emt 0:00:00]} d5 {[%emt 0:00:00]} 3. Nd2 {[%emt 0:00:03]} Be7 {[%emt 0:00:01]} 4. Bd3 {[%emt 0:00:12]} Nf6 {[%emt 0:00:01]} 5. e5 {[%emt 0:00:01]} Nfd7 {[%emt 0:00:01]} 6. f4 {[%emt 0:00:01]} c5 {[%emt 0:00:00]} 7. c3 {[%emt 0:00:01]} Nc6 {[%emt 0:00:02]} 8. Ngf3 {[%emt 0:00:01]} Qb6 {[%emt 0:00:14]} 9. Qb3 {[%emt 0:00:02]} c4 {[%emt 0:00:02]} 10. Qxb6 {[%emt 0:00:02]} axb6 {[%emt 0:00:02]} 11. Bc2 {[%emt 0:00:01]} b5 {[%emt 0:00:01]} 12. O-O {[%emt 0:00:07]} b4 {[%emt 0:00:05]} 13. f5 {[%emt 0:00:21]} b3 {[%emt 0:00:15]} 14. Bb1 {[%emt 0:00:00]} exf5 {[%emt 0:00:07]} 15. Re1 {[%emt 0:00:38]} Nb6 {[%emt 0:00:09]} 16. Nf1 {[%emt 0:00:01]} bxa2 {[%emt 0:00:09]} 17. Rxa2 {[%emt 0:00:05]} Rxa2 {[%emt 0:00:01]} 18. Bxa2 {[%emt 0:00:01]} Be6 {[%emt 0:00:05]} 19. Ng3 {[%emt 0:00:04]} O-O {[%emt 0:00:13]} 20. Bb1 {[%emt 0:00:07]} g6 {[%emt 0:00:01]} 21. Bh6 {[%emt 0:00:01]} Ra8 {[%emt 0:00:02]} 22. Bc2 {[%emt 0:00:15]} Bf8 {[%emt 0:00:02]} 23. Bxf8 {[%emt 0:00:03]} Kxf8 {[%emt 0:00:01]} 24. Ng5 {[%emt 0:00:01]} Kg7 {[%emt 0:00:00]} 25. h4 {[%emt 0:00:08]} h6 {[%emt 0:00:02]} 26. Nf3 {[%emt 0:00:01]} Ra2 {[%emt 0:00:04]} 27. Rb1 {[%emt 0:00:00]} Na5 {[%emt 0:00:03]} 28. h5 {[%emt 0:00:06]} g5 {[%emt 0:00:01]} 29. Nxf5+ {[%emt 0:00:03]} Bxf5 {[%emt 0:00:01]} 30. Bxf5 {[%emt 0:00:01]} Nb3 {[%emt 0:00:06]} 31. Bc2 {[%emt 0:00:10]} Na4 {[%emt 0:00:01]} 32. Bxb3 {[%emt 0:00:16]} cxb3 {[%emt 0:00:02]} 33. Nd2 {[%emt 0:00:01]} Rxb2 {[%emt 0:00:02]} 34. Rxb2 {[%emt 0:00:01]} Nxb2 {[%emt 0:00:01]} 35. Nxb3 {[%emt 0:00:02]} Nd1 {[%emt 0:00:01]} 36. Nc5 {[%emt 0:00:09]} Nxc3 {[%emt 0:00:06]} 37. Kf2 b5 {[%emt 0:00:03]} 38. Ke3 {[%emt 0:00:05]} b4 {[%emt 0:00:18]} 39. Kd3 {[%emt 0:00:02]} Nb5 {[%emt 0:00:28]} 40. Nb3 {[%emt 0:00:11]} f6 {[%emt 0:00:11]} 41. exf6+ {[%emt 0:00:09]} Kxf6 {[%emt 0:00:01]} 42. g4 {[%emt 0:00:00]} Ke6 {[%emt 0:00:14]} 43. Nc5+ {[%emt 0:00:01]} Kd6 {[%emt 0:00:08]} 44. Na6 {[%emt 0:00:10]} b3 {[%emt 0:00:03]} 45. Nc5 {[%emt 0:00:04]} b2 {[%emt 0:00:03]} 46. Kc2 {[%emt 0:00:02]} Nxd4+ {[%emt 0:00:03]} 47. Kxb2 {[%emt 0:00:01]} Kxc5 {[%emt 0:00:01]} 48. Kc3 {[%emt 0:00:01]} Nf3 {[%emt 0:00:01]} 49. Kd3 {[%emt 0:00:02]} Ne5+ {[%emt 0:00:02]} 50. Ke3 {[%emt 0:00:01]} Nxg4+ {[%emt 0:00:01]} 51. Kf3 {[%emt 0:00:00]} Ne5+ {[%emt 0:00:01]} 52. Kg3 {[%emt 0:00:01]} d4 {[%emt 0:00:01]} 0-1

[Event "11th LCC Super Blitz 2019"]
[Site "London"]
[Date "2019.12.08"]
[Round "3.12"]
[White "Watson, Mikey J"]
[Black "Onslow, Teddy"]
[Result "1-0"]
[ECO "C02"]
[WhiteElo "1748"]
[BlackElo "1647"]
[Annotator "NA"]
[PlyCount "89"]
[EventDate "2019.12.08"]
[EventType "swiss"]
[EventCountry "ENG"]
[SourceTitle "playchess.com"]
[Source "ChessBase"]
[SourceQuality "1"]
[TimeControl "180+2"]

1. e4 {[%emt 0:00:00]} e6 {[%emt 0:00:00]} 2. d4 {[%emt 0:00:01]} d5 {[%emt 0:00:00]} 3. e5 {[%emt 0:00:01]} c5 {[%emt 0:00:00]} 4. c3 {[%emt 0:00:01]} Nc6 {[%emt 0:00:00]} 5. Nf3 {[%emt 0:00:01]} Bd7 {[%emt 0:00:00]} 6. Bd3 {[%emt 0:00:03]} Qb6 {[%emt 0:00:02]} 7. O-O {[%emt 0:00:07]} cxd4 {[%emt 0:00:02]} 8. cxd4 {[%emt 0:00:00]} Nxd4 {[%emt 0:00:01]} 9. Nxd4 {[%emt 0:00:02]} Qxd4 {[%emt 0:00:00]} 10. Nc3 {[%emt 0:00:02]} Qxe5 {[%emt 0:00:41]} 11. Re1 {[%emt 0:00:01]} Qb8 {[%emt 0:00:16]} 12. Nxd5 {[%emt 0:00:09]} Ne7 {[%emt 0:00:12]} 13. Bf4 {[%emt 0:00:08]} Nxd5 {[%emt 0:00:09]} 14. Bxb8 {[%emt 0:00:03]} Rxb8 {[%emt 0:00:00]} 15. Qf3 {[%emt 0:00:20]} Nf6 {[%emt 0:00:26]} 16. Rac1 {[%emt 0:00:17]} Bd6 {[%emt 0:00:05]} 17. Red1 {[%emt 0:00:08]} Ke7 {[%emt 0:00:03]} 18. Qe3 {[%emt 0:00:33]} a6 {[%emt 0:00:12]} 19. Qb6 {[%emt 0:00:11]} Nd5 {[%emt 0:00:05]} 20. Qd4 {[%emt 0:00:07]} Rhc8 {[%emt 0:00:08]} 21. Bc4 {[%emt 0:00:11]} Bc5 {[%emt 0:00:48]} 22. Qxg7 {[%emt 0:00:05]} Rg8 {[%emt 0:00:00]} 23. Qh6 {[%emt 0:00:11]} Bc6 {[%emt 0:00:03]} 24. Bxd5 {[%emt 0:00:03]} Bxd5 {[%emt 0:00:04]} 25. Rxd5 {[%emt 0:00:02]} exd5 {[%emt 0:00:22]} 26. Rxc5 {[%emt 0:00:02]} Rbc8 {[%emt 0:00:01]} 27. Rxc8 {[%emt 0:00:08]} Rxc8 {[%emt 0:00:01]} 28. g3 {[%emt 0:00:01]} Rc2 {[%emt 0:00:02]} 29. Qxh7 {[%emt 0:00:09]} Rxb2 {[%emt 0:00:02]} 30. a3 {[%emt 0:00:09]} b5 {[%emt 0:00:01]} 31. Qd3 {[%emt 0:00:05]} Kd6 {[%emt 0:00:02]} 32. h4 {[%emt 0:00:07]} a5 {[%emt 0:00:02]} 33. h5 {[%emt 0:00:09]} b4 {[%emt 0:00:01]} 34. axb4 {[%emt 0:00:01]} Rxb4 {[%emt 0:00:05]} 35. h6 {[%emt 0:00:03]} a4 {[%emt 0:00:01]} 36. h7 {[%emt 0:00:03]} Rb8 {[%emt 0:00:02]} 37. Qa6+ {[%emt 0:00:02]} Ke5 {[%emt 0:00:00]} 38. Qxa4 {[%emt 0:00:04]} d4 {[%emt 0:00:01]} 39. Qa5+ {[%emt 0:00:06]} Ke4 {[%emt 0:00:01]} 40. Qe1+ {[%emt 0:00:05]} Kf3 {[%emt 0:00:01]} 41. Qd1+ {[%emt 0:00:03]} Ke4 {[%emt 0:00:02]} 42. Qe2+ {[%emt 0:00:02]} Kf5 {[%emt 0:00:01]} 43. Qf3+ {[%emt 0:00:05]} Kg6 {[%emt 0:00:01]} 44. Qe4+ {[%emt 0:00:04]} Kg7 {[%emt 0:00:00]} 45. Qe5+ {[%emt 0:00:02]} 1-0

[Event "11th LCC Super Blitz 2019"]
[Site "London"]
[Date "2019.12.08"]
[Round "3.12"]
[White "Muhunthan, Charukgan"]
[Black "Sandhu, Manvith"]
[Result "0-1"]
[ECO "B06"]
[WhiteElo "1401"]
[BlackElo "1673"]
[Annotator "NA"]
[PlyCount "137"]
[EventDate "2019.12.08"]
[EventType "swiss"]
[EventCountry "ENG"]
[SourceTitle "playchess.com"]
[Source "ChessBase"]
[SourceQuality "1"]
[TimeControl "180+2"]

1. e4 {[%emt 0:00:00]} Nc6 {[%emt 0:00:00]} 2. Nf3 {[%emt 0:00:02]} d6 {[%emt 0:00:00]} 3. d4 {[%emt 0:00:01]} Nf6 {[%emt 0:00:00]} 4. Nc3 {[%emt 0:00:02]} g6 {[%emt 0:00:01]} 5. Be3 {[%emt 0:00:01]} Bg7 {[%emt 0:00:01]} 6. Bc4 {[%emt 0:00:02]} O-O {[%emt 0:00:02]} 7. Qd2 {[%emt 0:00:01]} a6 {[%emt 0:00:10]} 8. a4 {[%emt 0:00:02]} Nb8 {[%emt 0:00:16]} 9. h3 {[%emt 0:00:09]} Nbd7 {[%emt 0:00:01]} 10. Bh6 {[%emt 0:00:02]} c5 {[%emt 0:00:22]} 11. Bxg7 Kxg7 {[%emt 0:00:01]} 12. d5 {[%emt 0:00:09]} Nb6 {[%emt 0:00:02]} 13. Ba2 {[%emt 0:00:05]} Qd7 {[%emt 0:00:04]} 14. a5 {[%emt 0:00:16]} Na4 {[%emt 0:00:10]} 15. Qe2 {[%emt 0:00:47]} Nxc3 {[%emt 0:00:09]} 16. bxc3 {[%emt 0:00:01]} Qa4 {[%emt 0:00:01]} 17. O-O {[%emt 0:00:31]} Qxe4 {[%emt 0:00:06]} 18. Qxe4 Nxe4 {[%emt 0:00:01]} 19. Rfe1 {[%emt 0:00:13]} Nxc3 {[%emt 0:00:05]} 20. Rxe7 {[%emt 0:00:01]} Kf6 {[%emt 0:00:38]} 21. Re3 {[%emt 0:00:14]} Nb5 {[%emt 0:00:04]} 22. c4 {[%emt 0:00:05]} Nc7 {[%emt 0:00:24]} 23. Rae1 {[%emt 0:00:01]} Bd7 {[%emt 0:00:05]} 24. Nd2 {[%emt 0:00:07]} Rfe8 {[%emt 0:00:26]} 25. Ne4+ {[%emt 0:00:01]} Ke5 {[%emt 0:00:02]} 26. Nxc5+ {[%emt 0:00:13]} Kd4 {[%emt 0:00:07]} 27. Nxd7 {[%emt 0:00:03]} Rxe3 {[%emt 0:00:05]} 28. Rxe3 {[%emt 0:00:02]} f5 {[%emt 0:00:15]} 29. Nf6 {[%emt 0:00:25]} Rf8 {[%emt 0:00:08]} 30. Nd7 {[%emt 0:00:03]} Rf7 {[%emt 0:00:03]} 31. Nb6 {[%emt 0:00:05]} f4 {[%emt 0:00:04]} 32. Rf3 {[%emt 0:00:05]} Ne8 {[%emt 0:00:05]} 33. Kf1 {[%emt 0:00:05]} Ng7 {[%emt 0:00:02]} 34. g3 {[%emt 0:00:02]} g5 {[%emt 0:00:05]} 35. gxf4 {[%emt 0:00:03]} gxf4 {[%emt 0:00:01]} 36. Ke2 {[%emt 0:00:01]} Nf5 {[%emt 0:00:01]} 37. Rd3+ {[%emt 0:00:02]} Ke4 {[%emt 0:00:01]} 38. f3+ {[%emt 0:00:01]} Ke5 {[%emt 0:00:01]} 39. Rd2 {[%emt 0:00:02]} Ng3+ {[%emt 0:00:02]} 40. Kf2 {[%emt 0:00:00]} Nf5 {[%emt 0:00:01]} 41. Re2+ {[%emt 0:00:01]} Kd4 {[%emt 0:00:01]} 42. Re4+ {[%emt 0:00:01]} Kc5 {[%emt 0:00:02]} 43. Re6 {[%emt 0:00:02]} Nd4 {[%emt 0:00:02]} 44. Re8 {[%emt 0:00:03]} Kb4 {[%emt 0:00:03]} 45. Re1 {[%emt 0:00:11]} Kxa5 {[%emt 0:00:02]} 46. Rb1 {[%emt 0:00:05]} Re7 {[%emt 0:00:05]} 47. Rb2 {[%emt 0:00:01]} Nf5 {[%emt 0:00:03]} 48. Nc8 {[%emt 0:00:04]} Re3 {[%emt 0:00:02]} 49. Nxd6 {[%emt 0:00:01]} Nxd6 {[%emt 0:00:02]} 50. c5 {[%emt 0:00:01]} Nb5 {[%emt 0:00:02]} 51. d6 {[%emt 0:00:01]} Re8 {[%emt 0:00:03]} 52. Bf7 {[%emt 0:00:01]} Rd8 {[%emt 0:00:01]} 53. Be6 {[%emt 0:00:02]} Nd4 {[%emt 0:00:02]} 54. Re2 {[%emt 0:00:03]} Nxe2 55. Kxe2 {[%emt 0:00:01]} Kb5 {[%emt 0:00:02]} 56. Bg4 {[%emt 0:00:02]} Kxc5 {[%emt 0:00:01]} 57. d7 {[%emt 0:00:00]} Kd6 {[%emt 0:00:02]} 58. Kd2 {[%emt 0:00:01]} Rxd7 {[%emt 0:00:01]} 59. Bxd7 {[%emt 0:00:01]} Kxd7 60. Kd3 b5 {[%emt 0:00:05]} 61. Ke4 {[%emt 0:00:03]} b4 {[%emt 0:00:01]} 62. Kd4 {[%emt 0:00:00]} a5 {[%emt 0:00:01]} 63. Kc4 {[%emt 0:00:01]} Ke6 {[%emt 0:00:01]} 64. h4 {[%emt 0:00:00]} Kf5 {[%emt 0:00:01]} 65. Kb3 {[%emt 0:00:01]} Kg6 {[%emt 0:00:01]} 66. Kc4 {[%emt 0:00:02]} Kh5 {[%emt 0:00:01]} 67. Kb3 {[%emt 0:00:00]} Kxh4 {[%emt 0:00:01]} 68. Kc4 {[%emt 0:00:01]} Kg3 {[%emt 0:00:01]} 69. Kb3 {[%emt 0:00:00]} 0-1

[Event "11th LCC Super Blitz 2019"]
[Site "London"]
[Date "2019.12.08"]
[Round "3.13"]
[White "Dhemrait, Jagdeep"]
[Black "Watson, Steven L"]
[Result "1-0"]
[ECO "B90"]
[WhiteElo "1834"]
[BlackElo "1634"]
[Annotator "NA"]
[PlyCount "62"]
[EventDate "2019.12.08"]
[EventType "swiss"]
[EventCountry "ENG"]
[SourceTitle "playchess.com"]
[Source "ChessBase"]
[SourceQuality "1"]
[TimeControl "180+2"]

1. e4 {[%emt 0:00:00]} c5 {[%emt 0:00:01]} 2. Nf3 {[%emt 0:00:02]} d6 {[%emt 0:00:01]} 3. d4 {[%emt 0:00:01]} cxd4 {[%emt 0:00:01]} 4. Nxd4 {[%emt 0:00:01]} Nf6 {[%emt 0:00:01]} 5. Nc3 {[%emt 0:00:01]} a6 {[%emt 0:00:03]} 6. Be3 {[%emt 0:00:03]} e5 {[%emt 0:00:02]} 7. Nb3 {[%emt 0:00:04]} Be7 {[%emt 0:00:03]} 8. a4 {[%emt 0:00:02]} Be6 {[%emt 0:00:03]} 9. f3 {[%emt 0:00:11]} Nbd7 {[%emt 0:00:01]} 10. Nd5 {[%emt 0:00:03]} Nxd5 {[%emt 0:00:21]} 11. exd5 {[%emt 0:00:02]} Bf5 {[%emt 0:00:07]} 12. a5 {[%emt 0:00:14]} Rc8 {[%emt 0:00:17]} 13. c4 {[%emt 0:00:03]} Bg6 {[%emt 0:00:10]} 14. Bd3 {[%emt 0:00:06]} O-O {[%emt 0:00:09]} 15. O-O {[%emt 0:00:07]} f5 {[%emt 0:00:13]} 16. Qb1 {[%emt 0:00:13]} Qe8 {[%emt 0:00:03]} 17. Nd2 {[%emt 0:00:07]} f4 {[%emt 0:00:02]} 18. Bf2 {[%emt 0:00:02]} Bxd3 {[%emt 0:00:09]} 19. Qxd3 {[%emt 0:00:01]} Qh5 {[%emt 0:00:09]} 20. b3 {[%emt 0:00:08]} Rf6 {[%emt 0:00:03]} 21. Ne4 {[%emt 0:00:09]} Rh6 {[%emt 0:00:02]} 22. h3 {[%emt 0:00:02]} Nf6 {[%emt 0:00:07]} 23. Nxf6+ {[%emt 0:00:08]} Bxf6 {[%emt 0:00:03]} 24. Kh2 {[%emt 0:00:09]} Bh4 {[%emt 0:00:03]} 25. Bxh4 {[%emt 0:00:02]} Qxh4 {[%emt 0:00:02]} 26. Qf5 {[%emt 0:00:11]} Qg3+ {[%emt 0:00:09]} 27. Kg1 {[%emt 0:00:01]} Rf8 {[%emt 0:00:06]} 28. Qd7 {[%emt 0:00:02]} Rg6 {[%emt 0:00:06]} 29. Ra2 {[%emt 0:00:03]} h6 {[%emt 0:00:21]} 30. Kh1 {[%emt 0:00:11]} Rf7 {[%emt 0:00:04]} 31. Qc8+ {[%emt 0:00:07]} Kh7 {[%emt 0:00:01]} 1-0

[Event "11th LCC Super Blitz 2019"]
[Site "London"]
[Date "2019.12.08"]
[Round "3.13"]
[White "Tombolis, Christopher"]
[Black "Caceres De La Calle, Eduardo"]
[Result "1-0"]
[ECO "D50"]
[WhiteElo "1655"]
[BlackElo "1575"]
[Annotator "NA"]
[PlyCount "73"]
[EventDate "2019.12.08"]
[EventType "swiss"]
[EventCountry "ENG"]
[SourceTitle "playchess.com"]
[Source "ChessBase"]
[SourceQuality "1"]
[TimeControl "180+2"]

1. d4 {[%emt 0:00:00]} d5 {[%emt 0:00:00]} 2. c4 {[%emt 0:00:01]} e6 {[%emt 0:00:02]} 3. Nc3 {[%emt 0:00:01]} Nf6 {[%emt 0:00:01]} 4. Bg5 {[%emt 0:00:01]} h6 {[%emt 0:00:01]} 5. Bh4 {[%emt 0:00:01]} c6 {[%emt 0:00:01]} 6. e3 {[%emt 0:00:04]} Bd6 {[%emt 0:00:01]} 7. Nf3 {[%emt 0:00:02]} Nbd7 {[%emt 0:00:02]} 8. Rc1 {[%emt 0:00:03]} b6 {[%emt 0:00:04]} 9. Bd3 {[%emt 0:00:02]} O-O {[%emt 0:00:02]} 10. O-O {[%emt 0:00:02]} Bb7 {[%emt 0:00:02]} 11. cxd5 {[%emt 0:00:14]} exd5 {[%emt 0:00:04]} 12. e4 {[%emt 0:00:09]} Bf4 {[%emt 0:00:20]} 13. e5 {[%emt 0:00:14]} Bxc1 {[%emt 0:00:03]} 14. Qxc1 {[%emt 0:00:01]} Qc7 {[%emt 0:00:14]} 15. exf6 {[%emt 0:00:02]} Nxf6 {[%emt 0:00:02]} 16. Bxf6 {[%emt 0:00:01]} gxf6 {[%emt 0:00:01]} 17. Qxh6 {[%emt 0:00:01]} Rfe8 {[%emt 0:00:13]} 18. Qh7+ {[%emt 0:00:47]} Kf8 {[%emt 0:00:02]} 19. Qh8+ {[%emt 0:00:06]} Ke7 {[%emt 0:00:02]} 20. Re1+ {[%emt 0:00:00]} Kd7 {[%emt 0:00:02]} 21. Bf5+ {[%emt 0:00:01]} Re6 {[%emt 0:00:07]} 22. Bxe6+ {[%emt 0:00:11]} fxe6 {[%emt 0:00:01]} 23. Qxf6 {[%emt 0:00:03]} Re8 {[%emt 0:00:23]} 24. Ne5+ {[%emt 0:00:04]} Kc8 {[%emt 0:00:02]} 25. Qg6 {[%emt 0:00:14]} Rh8 {[%emt 0:00:10]} 26. Qxe6+ {[%emt 0:00:03]} Kb8 {[%emt 0:00:02]} 27. Qf6 {[%emt 0:00:10]} Qh7 {[%emt 0:00:10]} 28. Nf3 {[%emt 0:00:08]} a5 {[%emt 0:00:25]} 29. Re7 {[%emt 0:00:23]} Qh5 {[%emt 0:00:02]} 30. Qe5+ {[%emt 0:00:04]} Ka7 {[%emt 0:00:08]} 31. Qxh5 {[%emt 0:00:07]} Rxh5 {[%emt 0:00:02]} 32. Ne5 {[%emt 0:00:01]} Rh6 {[%emt 0:00:07]} 33. g4 {[%emt 0:00:07]} Kb8 {[%emt 0:00:02]} 34. g5 {[%emt 0:00:03]} Rh5 {[%emt 0:00:05]} 35. f4 {[%emt 0:00:12]} Bc8 {[%emt 0:00:03]} 36. Nxc6+ {[%emt 0:00:03]} Ka8 {[%emt 0:00:03]} 37. Ra7# {[%emt 0:00:03]} 1-0

[Event "11th LCC Super Blitz 2019"]
[Site "London"]
[Date "2019.12.08"]
[Round "3.14"]
[White "Vaidya, Raghav"]
[Black "Fisher, Neal"]
[Result "1-0"]
[ECO "A21"]
[WhiteElo "1467"]
[BlackElo "1522"]
[Annotator "NA"]
[PlyCount "115"]
[EventDate "2019.12.08"]
[EventType "swiss"]
[EventCountry "ENG"]
[SourceTitle "playchess.com"]
[Source "ChessBase"]
[SourceQuality "1"]
[TimeControl "180+2"]

1. c4 {[%emt 0:00:00]} e5 {[%emt 0:00:01]} 2. Nc3 {[%emt 0:00:00]} d6 {[%emt 0:00:02]} 3. g3 {[%emt 0:00:03]} c6 {[%emt 0:00:01]} 4. h3 {[%emt 0:00:02]} Nf6 {[%emt 0:00:02]} 5. Bg2 {[%emt 0:00:01]} Be6 {[%emt 0:00:05]} 6. d3 {[%emt 0:00:02]} Qc7 {[%emt 0:00:04]} 7. e3 {[%emt 0:00:04]} Be7 {[%emt 0:00:03]} 8. Nge2 {[%emt 0:00:02]} O-O {[%emt 0:00:02]} 9. O-O {[%emt 0:00:02]} Qc8 {[%emt 0:00:04]} 10. Kh2 {[%emt 0:00:02]} Nbd7 {[%emt 0:00:07]} 11. b3 {[%emt 0:00:01]} Re8 {[%emt 0:00:04]} 12. Bb2 {[%emt 0:00:02]} Nf8 {[%emt 0:00:01]} 13. d4 {[%emt 0:00:06]} Ng6 {[%emt 0:00:02]} 14. d5 {[%emt 0:00:05]} Bd7 {[%emt 0:00:01]} 15. dxc6 {[%emt 0:00:19]} Bxc6 {[%emt 0:00:01]} 16. Bxc6 {[%emt 0:00:02]} Qxc6 {[%emt 0:00:02]} 17. Nd5 {[%emt 0:00:01]} Nxd5 {[%emt 0:00:03]} 18. cxd5 {[%emt 0:00:04]} Qd7 {[%emt 0:00:06]} 19. e4 {[%emt 0:00:03]} Rac8 {[%emt 0:00:10]} 20. Rc1 {[%emt 0:00:02]} Rxc1 {[%emt 0:00:02]} 21. Qxc1 {[%emt 0:00:01]} Rc8 {[%emt 0:00:00]} 22. Qd2 {[%emt 0:00:08]} h6 {[%emt 0:00:04]} 23. Rc1 {[%emt 0:00:03]} Rxc1 {[%emt 0:00:08]} 24. Qxc1 {[%emt 0:00:02]} Bg5 {[%emt 0:00:03]} 25. f4 {[%emt 0:00:10]} exf4 {[%emt 0:00:02]} 26. gxf4 {[%emt 0:00:01]} Be7 {[%emt 0:00:08]} 27. Ng3 {[%emt 0:00:13]} Bf6 {[%emt 0:00:11]} 28. Bxf6 {[%emt 0:00:06]} gxf6 {[%emt 0:00:01]} 29. Qe3 {[%emt 0:00:18]} b6 {[%emt 0:00:01]} 30. a4 {[%emt 0:00:02]} Qe7 {[%emt 0:00:04]} 31. Nf5 {[%emt 0:00:08]} Qf8 {[%emt 0:00:03]} 32. Kg3 {[%emt 0:00:07]} Kh7 {[%emt 0:00:09]} 33. Qc3 {[%emt 0:00:06]} Qd8 {[%emt 0:00:05]} 34. Qc6 {[%emt 0:00:09]} Qg8 {[%emt 0:00:10]} 35. Kf3 {[%emt 0:00:06]} Nf8 {[%emt 0:00:30]} 36. Qxd6 {[%emt 0:00:05]} Ng6 {[%emt 0:00:25]} 37. Qxf6 {[%emt 0:00:06]} Qf8 {[%emt 0:00:18]} 38. Nd6 {[%emt 0:00:20]} h5 {[%emt 0:00:17]} 39. Qxf7+ {[%emt 0:00:05]} Qxf7 {[%emt 0:00:01]} 40. Nxf7 {[%emt 0:00:02]} Kg7 {[%emt 0:00:00]} 41. Nd6 {[%emt 0:00:08]} Kf8 {[%emt 0:00:01]} 42. e5 {[%emt 0:00:03]} Ke7 {[%emt 0:00:01]} 43. Ke4 {[%emt 0:00:11]} Nh4 {[%emt 0:00:02]} 44. f5 {[%emt 0:00:05]} Ng2 {[%emt 0:00:03]} 45. f6+ {[%emt 0:00:04]} Kd7 {[%emt 0:00:01]} 46. Nc4 {[%emt 0:00:12]} Nh4 {[%emt 0:00:01]} 47. e6+ {[%emt 0:00:02]} Ke8 {[%emt 0:00:01]} 48. d6 {[%emt 0:00:09]} Ng6 {[%emt 0:00:01]} 49. f7+ {[%emt 0:00:02]} Kf8 {[%emt 0:00:00]} 50. Ne5 {[%emt 0:00:06]} h4 {[%emt 0:00:15]} 51. Nxg6+ {[%emt 0:00:02]} Kg7 {[%emt 0:00:00]} 52. f8=Q+ {[%emt 0:00:04]} Kxg6 {[%emt 0:00:01]} 53. e7 {[%emt 0:00:02]} Kg5 {[%emt 0:00:01]} 54. e8=Q {[%emt 0:00:05]} b5 {[%emt 0:00:01]} 55. Qe5+ {[%emt 0:00:02]} Kg6 {[%emt 0:00:02]} 56. Qff6+ {[%emt 0:00:01]} Kh7 {[%emt 0:00:01]} 57. Qee7+ {[%emt 0:00:01]} Kg8 {[%emt 0:00:02]} 58. Qff8# {[%emt 0:00:01]} 1-0

[Event "11th LCC Super Blitz 2019"]
[Site "London"]
[Date "2019.12.08"]
[Round "3.14"]
[White "Neo, Jing Yi Mischa"]
[Black "Saidmurodov, Shahjahon"]
[Result "0-1"]
[ECO "C30"]
[WhiteElo "1240"]
[BlackElo "1812"]
[Annotator "NA"]
[PlyCount "34"]
[EventDate "2019.12.08"]
[EventType "swiss"]
[EventCountry "ENG"]
[SourceTitle "playchess.com"]
[Source "ChessBase"]
[SourceQuality "1"]
[TimeControl "180+2"]

1. e4 {[%emt 0:00:00]} e5 {[%emt 0:00:00]} 2. f4 {[%emt 0:00:01]} Bc5 {[%emt 0:00:00]} 3. Nf3 {[%emt 0:00:03]} d6 {[%emt 0:00:01]} 4. Nc3 {[%emt 0:00:02]} Nf6 {[%emt 0:00:02]} 5. Bc4 {[%emt 0:00:04]} Bg4 {[%emt 0:00:01]} 6. d3 {[%emt 0:00:10]} Nc6 {[%emt 0:00:02]} 7. h3 {[%emt 0:00:13]} Bxf3 {[%emt 0:00:06]} 8. Qxf3 {[%emt 0:00:01]} Nd4 {[%emt 0:00:00]} 9. Qd1 {[%emt 0:00:14]} c6 {[%emt 0:00:40]} 10. Rf1 {[%emt 0:00:49]} Qe7 {[%emt 0:00:14]} 11. Na4 {[%emt 0:00:21]} d5 {[%emt 0:00:34]} 12. Nxc5 {[%emt 0:00:14]} dxc4 {[%emt 0:00:05]} 13. dxc4 {[%emt 0:00:06]} Qxc5 {[%emt 0:00:02]} 14. b3 {[%emt 0:00:17]} Nxe4 {[%emt 0:00:08]} 15. Be3 {[%emt 0:00:12]} Nxc2+ {[%emt 0:00:04]} 16. Qxc2 {[%emt 0:00:12]} Qxe3+ {[%emt 0:00:01]} 17. Qe2 {[%emt 0:00:07]} Qc3+ {[%emt 0:00:04]} 0-1